bitfinex/quotes_ETHUSD_20241212
["timestamp","ask_amount","ask_price","bid_price","bid_amount"]
[1733971606376,2.61328,3826.6,3825.9,0.01820272]
[1733971606534,0.6345232,3826.5,3825.9,0.01820272]
[1733971606735,0.6345232,3826.4,3825.9,0.01820272]
[1733971606938,0.6345232,3826.3,3825.9,0.01820272]
[1733971607147,0.6345232,3826.2,3825.9,0.01820272]
[1733971607384,0.24404738,3826.1,3825.9,0.01820272]
[1733971607678,0.03469971,3826.1,3825.9,0.01820272]
[1733971607838,0.3905439,3826.5,3825.9,0.01820272]
[1733971608039,0.6693971,3826.4,3825.9,0.01820272]
[1733971608383,0.24409704,3826.3,3826.0,0.7719]
[1733971608596,0.24409704,3826.2,3826.0,0.7719]
[1733971608770,0.2441355,3826.1,3826.0,0.7719]
[1733971608952,0.24174118,3826.1,3825.9,0.01820272]
[1733971609156,0.03447884,3826.1,3825.9,0.01820272]
[1733971609690,0.0342618,3826.0,3825.9,0.01820272]
[1733971609839,0.39070779,3826.3,3825.9,0.01820272]
[1733971610186,0.7949,3826.1,3825.9,0.01820272]
[1733971610623,0.42503122,3826.0,3825.9,0.01820272]
[1733971610770,3.03872122,3826.0,3825.9,0.01820272]
[1733971610967,3.94310776,3826.0,3825.9,0.01820272]
[1733971612125,3.03872122,3826.0,3825.9,0.01820272]
[1733971615225,0.42503122,3826.0,3825.9,0.01820272]
[1733971615593,0.03422212,3826.0,3825.9,0.01820272]
[1733971616111,0.03393889,3826.0,3825.9,0.01820272]
[1733971616308,0.7939,3826.6,3825.9,0.01820272]
[1733971616624,0.42465183,3826.5,3826.0,0.8146]
[1733971616828,0.03403298,3826.5,3826.0,0.8146]
[1733971617136,3.40701,3826.9,3826.0,0.8146]
[1733971617294,0.03388389,3826.4,3826.0,0.8146]
[1733971617618,0.39060152,3826.8,3826.0,1.19788027]
[1733971617922,0.39060152,3826.7,3826.0,0.8146]
[1733971618131,0.39060152,3826.6,3826.0,0.8146]
[1733971618287,0.03400832,3826.7,3826.0,0.8146]
[1733971618494,0.7939,3826.9,3826.0,0.8146]
[1733971618693,0.42490661,3826.8,3826.0,0.8146]
[1733971618938,0.39065288,3826.7,3826.1,0.56624727]
[1733971619116,0.03425373,3826.8,3826.1,0.56624727]
[1733971619321,0.39065276,3826.7,3826.1,0.56624727]
[1733971619528,0.03425373,3826.8,3826.1,0.56624727]
[1733971619820,0.03443135,3826.6,3826.1,0.56624727]
[1733971620009,0.03445016,3826.7,3826.2,0.439905]
[1733971620210,0.03441253,3826.5,3826.2,0.439905]
[1733971620405,0.03443135,3826.6,3826.2,0.439905]
[1733971620610,0.03439371,3826.4,3826.2,0.439905]
[1733971620946,0.39067651,3826.9,3826.2,0.439905]
[1733971621090,0.63484718,3826.8,3826.2,0.439905]
[1733971621442,0.66934241,3826.7,3826.2,0.439905]
[1733971621611,0.24417067,3826.6,3826.2,0.439905]
[1733971621942,0.2786455,3826.5,3826.2,0.439905]
[1733971622235,0.03447483,3826.5,3826.2,0.439905]
[1733971622451,0.03447483,3826.5,3826.3,0.6084085]
[1733971622596,0.39065268,3826.9,3826.4,0.8146]
[1733971622933,0.24414266,3826.8,3826.4,0.8146]
[1733971623135,0.24414266,3826.7,3826.4,0.8146]
[1733971623346,0.03453694,3826.8,3826.4,0.8146]
[1733971623642,0.24410716,3826.7,3826.4,0.8146]
[1733971623835,0.7939,3827.2,3826.4,1.079004]
[1733971624138,0.66930318,3827.1,3826.4,1.079004]
[1733971624345,0.63467583,3827.0,3826.4,1.079004]
[1733971624642,0.24410609,3826.9,3826.4,1.079004]
[1733971624843,0.24410609,3826.8,3826.4,1.079004]
[1733971624993,0.24410609,3826.7,3826.4,1.079004]
[1733971625193,0.24410609,3826.6,3826.4,0.8146]
[1733971625433,0.7939,3827.2,3826.4,0.8146]
[1733971625611,0.39051529,3827.1,3826.4,0.8146]
[1733971625833,0.63458904,3827.0,3826.4,0.8146]
[1733971626143,0.27866348,3826.9,3826.4,0.8146]
[1733971626298,0.24407375,3826.8,3826.4,0.8146]
[1733971626498,0.27879575,3826.7,3826.4,0.8146]
[1733971626747,0.034722,3826.7,3826.4,0.8146]
[1733971627093,0.3904824,3827.0,3826.4,0.8146]
[1733971627294,0.2788111,3826.9,3826.4,0.8146]
[1733971627544,0.24405147,3826.8,3826.4,0.8146]
[1733971627745,0.03475963,3826.9,3826.4,0.8146]
[1733971627746,0.24405147,3826.7,3826.4,0.8146]
[1733971627933,0.24405147,3826.6,3826.4,0.8146]
[1733971628246,0.39046202,3827.1,3826.4,0.8146]
[1733971628395,0.7939,3827.2,3826.4,0.8146]
[1733971628396,0.63448655,3827.0,3826.4,0.8146]
[1733971628605,0.24402453,3826.9,3826.4,0.8146]
[1733971628904,0.27876535,3826.8,3826.4,0.8146]
[1733971629109,0.24402453,3826.7,3826.4,0.8146]
[1733971629316,0.03470319,3826.6,3826.4,0.8146]
[1733971629493,0.39041816,3827.1,3826.4,1.079012]
[1733971629821,0.66923629,3827.0,3826.4,0.8146]
[1733971630021,0.24401789,3826.9,3826.4,0.8146]
[1733971630195,0.24401789,3826.8,3826.4,0.8146]
[1733971630396,0.24401789,3826.7,3826.4,0.8146]
[1733971630600,0.03475214,3826.8,3826.4,0.8146]
[1733971630935,0.27873842,3826.7,3826.4,1.079012]
[1733971631111,0.7939,3827.2,3826.4,1.079012]
[1733971631301,0.66921262,3827.1,3826.4,0.8146]
[1733971631644,0.24400155,3827.0,3826.4,0.8146]
[1733971631873,0.03480858,3827.1,3826.4,0.8146]
[1733971632005,0.24398969,3827.0,3826.4,0.8146]
[1733971632357,0.160462,3827.6,3827.0,3.0]
[1733971632554,0.160462,3827.6,3827.5,5.00535149]
[1733971633356,0.160462,3827.6,3827.5,6.68960158]
[1733971635258,0.160462,3827.6,3827.5,8.00285654]
[1733971635406,0.110462,3827.6,3827.5,8.00285654]
[1733971635608,0.110462,3827.6,3827.5,8.80314219]
[1733971635907,0.110462,3827.6,3827.5,6.97427219]
[1733971637753,0.00316537,3829.0,3827.5,8.54187219]
[1733971637963,0.00316537,3829.0,3828.7,0.7824]
[1733971638252,0.00316537,3829.0,3828.8,1.56706]
[1733971638446,0.00316537,3829.0,3828.9,0.47425465]
[1733971638618,0.00316537,3829.0,3828.9,1.25665465]
[1733971638821,1.24368717,3829.8,3829.1,1.56693]
[1733971639064,1.24368717,3829.8,3829.4,0.7824]
[1733971639205,1.24368717,3829.8,3829.4,2.37532083]
[1733971639411,1.24368717,3829.8,3829.5,0.47684074]
[1733971640206,1.24368717,3829.8,3829.5,5.04360074]
[1733971640439,1.24368717,3829.8,3829.5,0.47684074]
[1733971640658,1.24368717,3829.8,3829.6,1.56672]
[1733971641064,1.24368717,3829.8,3829.7,2.39308654]
[1733971641348,1.24368717,3829.8,3829.7,3.21499127]
[1733971641709,1.24368717,3829.8,3829.7,6.99739127]
[1733971643819,0.00316404,3830.6,3830.5,2.34487]
[1733971644053,0.00316404,3830.6,3830.5,7.73795654]
[1733971644213,0.00316404,3830.6,3830.5,8.66840019]
[1733971646357,0.00316404,3830.6,3830.5,7.10203019]
[1733971646857,0.00316404,3830.6,3830.5,0.7785]
[1733971647026,0.00316404,3830.6,3830.5,3.17158654]
[1733971647228,0.00316404,3830.6,3830.5,6.17158654]
[1733971648469,0.00316404,3830.6,3830.1,3.17158654]
[1733971648958,0.03287102,3830.5,3830.1,3.17158654]
[1733971649160,0.03287102,3830.5,3829.7,3.17158654]
[1733971649364,0.03287102,3830.5,3829.7,3.50198452]
[1733971649514,2.64352102,3830.5,3829.7,3.17158654]
[1733971649913,0.03287102,3830.5,3829.7,3.17158654]
[1733971650370,2.64350102,3830.5,3829.7,3.17158654]
[1733971650530,0.03287102,3830.5,3829.3,3.17158654]
[1733971651225,2.61084,3830.2,3829.3,3.17158654]
[1733971651451,2.61118,3829.7,3829.0,0.13308435]
[1733971651843,0.83632053,3829.6,3828.2,2.39308654]
[1733971652001,2.61146,3829.3,3828.2,2.39308654]
[1733971652369,0.03158147,3829.2,3828.2,2.39308654]
[1733971652566,0.03158147,3829.2,3828.3,0.31715865]
[1733971652769,2.64309147,3829.2,3828.3,0.31715865]
[1733971653199,2.61159,3829.1,3828.3,3.31715865]
[1733971653492,0.03158147,3829.2,3828.3,0.31715865]
[1733971653790,2.61172,3828.9,3828.3,0.31715865]
[1733971654008,2.60807793,3828.9,3828.2,2.39308654]
[1733971654156,0.03098054,3828.8,3828.2,2.39308654]
[1733971655500,2.61172,3828.9,3828.2,2.39308654]
[1733971655704,0.03098054,3828.8,3827.8,2.39308654]
[1733971655915,2.61187,3828.7,3827.8,2.77359975]
[1733971656405,0.03094295,3828.6,3827.8,2.77359975]
[1733971656756,2.61174,3828.9,3827.8,2.77359975]
[1733971656953,0.03098054,3828.8,3827.8,2.77359975]
[1733971657199,0.03098054,3828.8,3827.9,0.51457494]
[1733971657603,2.61192,3828.6,3827.9,0.51457494]
[1733971657811,2.61177,3828.9,3827.9,0.51457494]
[1733971658017,0.02992435,3828.5,3828.2,2.39308654]
[1733971658298,0.99309616,3829.7,3828.4,0.8272]
[1733971658518,0.24173299,3829.6,3828.8,2.39308654]
[1733971658722,0.02923206,3829.6,3828.8,2.39308654]
[1733971659020,0.02923206,3829.6,3828.9,3.72474719]
[1733971659157,0.02923206,3829.6,3829.0,0.02611322]
[1733971659356,0.24188224,3829.8,3829.1,0.8272]
[1733971659604,0.7515,3830.0,3828.9,3.698634]
[1733971659605,0.02925084,3829.7,3828.9,0.698634]
[1733971659785,0.02925084,3829.7,3828.8,2.39308654]
[1733971659961,0.7515,3830.0,3828.8,2.39308654]
[1733971659962,2.61125,3829.6,3828.8,2.39308654]
[1733971660298,0.2712584,3829.5,3828.8,2.39308654]
[1733971660503,0.02921327,3829.5,3828.8,2.39308654]
[1733971660716,0.02921327,3829.5,3828.7,0.8272]
[1733971660861,0.02921327,3829.5,3828.7,1.44922865]
[1733971661368,0.24209593,3829.4,3828.7,1.44922865]
[1733971661555,0.27127163,3829.3,3828.7,1.44922865]
[1733971661904,0.0291757,3829.3,3828.7,1.44922865]
[1733971662197,0.38769115,3829.7,3828.7,1.44922865]
[1733971662513,0.63000055,3829.6,3828.8,0.30164086]
[1733971662801,0.27180541,3829.5,3828.8,0.30164086]
[1733971662982,0.2423094,3829.4,3828.7,1.44922865]
[1733971663299,0.27175653,3829.3,3828.7,1.44922865]
[1733971663502,0.02944713,3829.3,3828.7,1.44922865]
[1733971663806,2.61118,3829.7,3828.7,1.44922865]
[1733971663959,0.02942834,3829.2,3828.7,1.44922865]
[1733971664160,0.7515,3830.0,3828.8,3.14492287]
[1733971664356,0.24244146,3829.9,3829.2,1.82805]
[1733971664594,0.02959759,3829.8,3829.2,1.82805]
[1733971664966,0.7515,3830.4,3829.2,1.82805]
[1733971665164,0.66010709,3830.3,3829.2,1.82805]
[1733971665371,0.63047132,3830.2,3829.3,0.482805]
[1733971665559,0.24246753,3830.1,3829.3,0.482805]
[1733971665771,2.85343753,3830.0,3828.9,0.8272]
[1733971666058,0.63051908,3829.9,3828.9,0.8272]
[1733971666275,0.63051908,3829.8,3828.9,0.8272]
[1733971666469,0.66061812,3829.7,3828.9,0.8272]
[1733971666669,0.24246753,3829.6,3828.9,0.8272]
[1733971666880,0.24246753,3829.5,3828.9,1.46944315]
[1733971667082,0.24262398,3829.4,3828.9,1.46944315]
[1733971667328,0.7515,3829.6,3828.9,0.8272]
[1733971667471,0.66107898,3829.5,3828.9,0.8272]
[1733971667679,0.24269749,3829.4,3828.9,0.8272]
[1733971667874,0.03006147,3829.5,3828.9,0.8272]
[1733971668108,0.02993343,3829.3,3828.9,0.8272]
[1733971668380,0.02991464,3829.2,3828.9,1.092749]
[1733971668575,0.02991464,3829.2,3828.9,0.8272]
[1733971668794,2.61118,3829.7,3828.9,0.8272]
[1733971668989,0.02891489,3829.1,3828.9,0.8272]
[1733971669196,2.61118,3829.7,3828.9,0.8272]
[1733971669416,0.2427084,3829.6,3828.9,0.8272]
[1733971669596,0.2427084,3829.5,3828.9,0.8272]
[1733971669780,0.2427084,3829.4,3828.9,0.8272]
[1733971669985,0.02897126,3829.4,3828.9,0.8272]
[1733971670404,0.38832528,3829.7,3828.9,0.8272]
[1733971670617,0.02895247,3829.3,3828.9,0.8272]
[1733971670797,2.6111,3829.8,3828.9,0.8272]
[1733971671087,0.63102118,3829.7,3828.9,0.8272]
[1733971671271,0.27170928,3829.6,3828.9,0.8272]
[1733971671474,0.24270045,3829.5,3828.9,0.8272]
[1733971671675,0.24270045,3829.4,3828.9,0.8272]
[1733971671916,0.24270045,3829.3,3828.9,0.8272]
[1733971672219,0.02893368,3829.2,3828.9,0.8272]
[1733971672713,0.38841322,3829.8,3828.9,0.8272]
[1733971672714,0.38841322,3829.7,3828.9,0.8272]
[1733971672871,0.271757,3829.6,3828.9,0.8272]
[1733971673075,0.24274817,3829.5,3828.9,0.8272]
[1733971673325,2.61112,3829.8,3828.9,0.8272]
[1733971673326,0.02897126,3829.4,3828.9,0.8272]
[1733971673615,0.38844831,3829.7,3828.9,0.8272]
[1733971673817,2.61112,3829.8,3828.9,0.8272]
[1733971673818,0.02895247,3829.3,3828.9,0.8272]
[1733971674121,0.02893368,3829.2,3828.6,3.7511]
[1733971674303,0.24297816,3829.1,3828.0,0.7511]
[1733971674527,2.88346076,3829.0,3828.0,0.7511]
[1733971674840,0.24297816,3828.9,3828.0,0.7511]
[1733971675144,0.27166706,3828.8,3828.0,0.7511]
[1733971675346,0.24297816,3828.7,3828.0,0.7511]
[1733971675640,0.27142024,3828.6,3828.0,0.7511]
[1733971675842,0.24314224,3828.5,3828.0,0.7511]
[1733971676047,0.02844208,3828.6,3828.0,0.7511]
[1733971676203,0.8273,3829.2,3828.0,0.7511]
[1733971676204,0.02840448,3828.4,3828.0,0.7511]
[1733971676402,0.02823102,3828.5,3828.0,0.7511]
[1733971676620,0.02819343,3828.3,3828.0,0.7511]
[1733971676825,0.02821222,3828.4,3828.0,0.7511]
[1733971677033,0.02817463,3828.2,3828.0,0.7511]
[1733971677243,2.61171,3828.9,3828.1,0.37511]
[1733971677408,0.63308689,3828.8,3828.0,0.7511]
[1733971677623,0.63308689,3828.7,3828.0,0.7511]
[1733971677963,0.2717447,3828.6,3828.0,0.7511]
[1733971678116,0.24349488,3828.5,3828.0,0.7511]
[1733971678458,0.27187608,3828.4,3828.0,0.7511]
[1733971678607,0.27187608,3828.4,3828.0,1.009081]
[1733971678608,0.02821222,3828.4,3828.0,1.009081]
[1733971678959,0.24366584,3828.3,3828.0,1.009081]
[1733971679253,0.02817463,3828.2,3828.0,1.009081]
[1733971679615,0.38999631,3828.8,3828.0,1.009081]
[1733971679845,0.63374845,3828.7,3828.0,0.7511]
[1733971680053,0.63374845,3828.6,3828.0,0.7511]
[1733971680227,0.63374845,3828.6,3827.5,0.7511]
[1733971680228,1.46104845,3828.5,3827.5,0.7511]
[1733971680557,0.63374845,3828.4,3827.5,0.7511]
[1733971680855,0.27179012,3828.3,3827.5,0.7511]
[1733971681062,0.2437494,3828.2,3827.5,1.309105]
[1733971681265,0.2437494,3828.1,3827.5,1.309105]
[1733971681418,0.2437494,3828.0,3827.5,1.309105]
[1733971681617,0.2437494,3827.9,3827.5,1.309105]
[1733971681988,0.02767526,3827.8,3827.5,1.309105]
[1733971682306,0.02767526,3827.8,3827.2,0.7511]
[1733971682450,2.61222,3828.2,3827.2,0.7511]
[1733971682790,0.63389385,3828.1,3827.2,0.7511]
[1733971682999,0.63389385,3828.0,3827.2,0.7511]
[1733971683149,0.8273,3827.8,3827.2,0.7511]
[1733971683597,0.02742453,3827.7,3827.2,0.7511]
[1733971684096,0.8273,3827.8,3827.2,1.309124]
[1733971684256,0.02740573,3827.6,3827.2,0.7511]
[1733971684458,0.02719256,3827.7,3827.2,0.7511]
[1733971684657,0.02715495,3827.5,3827.2,0.7511]
[1733971684858,0.02717376,3827.6,3827.2,0.7511]
[1733971685198,0.8273,3827.8,3827.2,0.7511]
[1733971685403,0.02715495,3827.5,3826.8,0.7511]
[1733971685568,0.8273,3827.8,3826.8,0.7511]
[1733971685569,2.6126,3827.6,3826.8,0.7511]
[1733971685787,2.8832466,3827.5,3826.6,0.27158553]
[1733971685970,0.24360236,3827.4,3826.6,0.27158553]
[1733971686170,2.6396439,3827.5,3826.6,0.27158553]
[1733971686371,0.24351055,3827.4,3826.6,0.27158553]
[1733971686585,0.27037894,3827.3,3826.6,0.27158553]
[1733971686952,0.02686839,3827.3,3826.6,0.66316274]
[1733971687103,0.2435127,3827.2,3826.6,0.66316274]
[1733971687308,0.7834,3827.2,3826.6,0.66316274]
[1733971687622,0.7834,3827.2,3826.6,0.27158553]
[1733971687623,0.02683078,3827.1,3826.6,0.27158553]
[1733971688017,0.02683078,3827.1,3826.5,0.7511]
[1733971688867,0.02683078,3827.1,3826.6,0.02613022]
[1733971689100,0.02683078,3827.1,3826.7,1.82922]
[1733971689310,0.24317702,3827.8,3826.5,3.7511]
[1733971689514,2.61263,3827.6,3826.6,0.84735365]
[1733971689680,0.02640598,3827.7,3826.6,0.84735365]
[1733971689880,0.02636837,3827.5,3826.7,3.0]
[1733971690083,0.02638718,3827.6,3826.6,0.84735365]
[1733971690397,0.7834,3827.9,3826.6,0.84735365]
[1733971690579,2.61267,3827.5,3826.7,0.50984537]
[1733971690780,0.02646843,3827.4,3826.7,0.50984537]
[1733971691781,0.7834,3827.3,3826.7,0.50984537]
[1733971691975,0.02643082,3827.2,3826.5,0.7511]
[1733971693874,0.02643082,3827.2,3826.4,0.5]
[1733971694075,0.7834,3826.8,3826.4,0.5]
[1733971694491,0.02581042,3826.7,3826.4,0.5]
[1733971694886,3.39656,3826.8,3826.4,0.5]
[1733971695103,0.0257633,3826.6,3826.4,0.5]
[1733971695315,0.7834,3826.8,3826.4,0.5]
[1733971695489,0.02574449,3826.5,3826.4,0.5]
[1733971695678,0.7834,3826.8,3826.4,0.4588466]
[1733971695878,0.02574449,3826.5,3826.4,0.4588466]
[1733971696122,0.7834,3826.8,3826.4,0.4588466]
[1733971696303,3.39655,3826.8,3826.4,0.4588466]
[1733971696625,0.02578212,3826.7,3826.4,0.4588466]
[1733971697041,0.7834,3826.8,3826.4,0.4588466]
[1733971697199,0.0257633,3826.6,3826.4,0.4588466]
[1733971697377,0.7834,3827.1,3826.4,0.4588466]
[1733971697716,0.0254932,3827.0,3826.4,0.4588466]
[1733971698275,2.6385132,3827.0,3826.4,0.4588466]
[1733971698824,0.24297777,3826.9,3826.4,0.4588466]
[1733971698978,2.6385132,3827.0,3826.4,0.4588466]
[1733971699177,2.85606655,3826.9,3826.4,0.4588466]
[1733971699427,0.7834,3827.1,3826.4,0.4588466]
[1733971699428,2.88152986,3826.8,3826.4,0.4588466]
[1733971699590,2.63854331,3826.8,3826.4,0.4588466]
[1733971700031,0.7834,3826.5,3826.4,0.4588466]
[1733971700385,1.05172335,3826.5,3826.4,0.4588466]
[1733971701127,3.66514266,3826.5,3826.4,0.4588466]
[1733971701328,1.05179266,3826.5,3826.4,0.4588466]
[1733971701511,0.80873687,3826.5,3826.4,0.4588466]
[1733971701711,1.05182468,3826.5,3826.4,0.4588466]
[1733971701917,0.26842468,3826.5,3826.4,0.4588466]
[1733971703180,0.65736518,3826.5,3826.4,0.4588466]
[1733971703510,4.08533727,3826.5,3826.4,0.4588466]
[1733971704427,3.69647031,3826.5,3826.4,0.4588466]
[1733971704630,4.08556382,3826.5,3826.4,0.4588466]
[1733971705005,4.63556382,3826.5,3826.4,0.4588466]
[1733971705210,1.3646,3826.4,3825.2,0.27095821]
[1733971705515,3.42843,3825.8,3825.2,0.27095821]
[1733971705689,0.24318344,3825.7,3824.8,0.8201]
[1733971706031,0.24318344,3825.6,3824.8,0.8201]
[1733971706200,0.24318344,3825.5,3824.8,0.8201]
[1733971706390,0.02418322,3825.5,3824.8,0.8201]
[1733971706731,0.8146,3825.8,3824.8,0.8201]
[1733971706897,0.02382453,3825.4,3824.8,0.8201]
[1733971707095,3.42843,3825.8,3824.8,0.8201]
[1733971707409,2.85705968,3825.7,3824.8,0.8201]
[1733971707617,0.24315968,3825.6,3824.8,0.8201]
[1733971707907,0.24315968,3825.5,3824.8,0.8201]
[1733971708112,0.02378102,3825.5,3824.8,0.8201]
[1733971708640,0.02376219,3825.4,3824.8,0.8201]
[1733971709003,3.81753901,3825.8,3824.8,0.8201]
[1733971709340,0.02374337,3825.3,3824.8,0.8201]
[1733971709549,0.38910901,3825.7,3824.8,0.8201]
[1733971709749,0.24325365,3825.6,3824.8,0.8201]
[1733971709911,0.24325365,3825.5,3824.8,0.8201]
[1733971710248,0.02374135,3825.5,3824.8,0.8201]
[1733971710548,0.8146,3825.8,3824.9,1.8301]
[1733971710749,0.38912981,3825.9,3824.9,0.0261424]
[1733971711042,0.8146,3826.4,3824.8,3.53450519]
[1733971711043,0.02685764,3825.8,3825.2,0.8201]
[1733971711343,0.02685764,3825.8,3825.2,0.84623993]
[1733971711544,0.24324098,3825.7,3825.2,0.8201]
[1733971711711,0.02499799,3825.7,3825.2,0.8201]
[1733971712040,0.02512351,3825.6,3825.2,0.8201]
[1733971712574,2.6135,3826.3,3825.2,0.8201]
[1733971712873,0.65779212,3826.2,3825.2,0.8201]
[1733971713056,0.63254761,3826.1,3825.2,0.8201]
[1733971713253,0.63254761,3826.0,3825.2,0.8201]
[1733971713423,0.24328868,3825.9,3825.2,0.8201]
[1733971713623,0.24328868,3825.8,3825.2,0.8201]
[1733971713873,0.02516385,3825.8,3825.2,0.8201]
[1733971714051,0.24333099,3825.7,3825.2,2.65006]
[1733971714254,0.38933016,3826.1,3825.2,1.085106]
[1733971714467,0.24338802,3826.0,3825.3,1.8299]
[1733971714619,0.24338802,3825.9,3825.3,1.8299]
[1733971714827,0.24338802,3825.8,3825.3,1.8299]
[1733971715031,0.02513957,3825.8,3825.3,1.8299]
[1733971715225,0.24339527,3825.7,3825.2,0.8201]
[1733971715559,0.24347531,3825.6,3825.2,0.8201]
[1733971715868,0.26866817,3825.5,3825.2,0.8201]
[1733971716077,0.02518225,3825.5,3825.2,0.8201]
[1733971716367,0.8146,3825.8,3825.2,0.8201]
[1733971716579,0.26872838,3825.7,3825.2,0.8201]
[1733971716729,0.24350579,3825.6,3825.2,0.8201]
[1733971716925,0.24351089,3825.5,3825.2,0.8201]
[1733971717165,0.8146,3825.8,3825.2,0.8201]
[1733971717347,0.02522259,3825.7,3825.2,0.8201]
[1733971717543,0.24352546,3825.6,3825.2,0.8201]
[1733971717744,0.24352546,3825.5,3825.2,0.8201]
[1733971717945,0.02518225,3825.5,3825.2,0.8201]
[1733971718149,0.8146,3825.8,3825.2,0.8201]
[1733971718345,0.24354547,3825.7,3825.2,0.8201]
[1733971718570,0.24354547,3825.6,3825.2,0.8201]
[1733971718726,0.26872772,3825.5,3825.2,0.8201]
[1733971718930,0.02518225,3825.5,3825.2,0.8201]
[1733971719132,0.8146,3825.8,3825.2,0.8201]
[1733971719427,0.65864944,3825.7,3825.2,0.8201]
[1733971719659,0.24362571,3825.6,3825.2,0.8201]
[1733971719875,0.24362571,3825.5,3825.2,0.8201]
[1733971720080,0.02518225,3825.5,3825.2,0.8201]
[1733971720282,0.24371096,3825.4,3825.2,0.8201]
[1733971720576,0.8146,3825.8,3825.2,0.8201]
[1733971720775,0.24370876,3825.7,3825.2,0.8201]
[1733971720943,0.24370876,3825.6,3825.2,0.8201]
[1733971721135,0.26889101,3825.5,3825.2,0.8201]
[1733971721336,0.24370876,3825.4,3825.2,0.8201]
[1733971721586,0.26885066,3825.3,3825.2,0.8201]
[1733971721787,0.24370876,3825.3,3825.2,0.8201]
[1733971722128,0.2690052,3825.3,3825.2,0.8201]
[1733971722361,0.2438633,3825.3,3825.2,0.8201]
[1733971722574,0.24386338,3825.3,3825.2,0.8201]
[1733971722781,0.8146,3825.8,3825.2,0.8201]
[1733971723078,0.65926655,3825.7,3825.2,0.8201]
[1733971723278,0.63404396,3825.6,3825.2,0.8201]
[1733971723450,0.24386306,3825.5,3825.2,0.8201]
[1733971723651,0.24386306,3825.4,3825.2,0.8201]
[1733971723843,0.24386306,3825.3,3825.2,0.8201]
[1733971726853,0.8146,3826.0,3825.2,0.8201]
[1733971727063,0.63468427,3825.9,3825.2,0.8201]
[1733971727375,0.63468427,3825.8,3825.2,0.8201]
[1733971727582,0.63468427,3825.7,3825.2,0.8201]
[1733971727873,0.63468427,3825.6,3825.2,0.8201]
[1733971728077,0.2441094,3825.5,3825.2,0.8201]
[1733971728284,0.2441094,3825.4,3825.2,0.8201]
[1733971728482,0.2441094,3825.3,3825.2,0.8201]
[1733971728687,0.2694152,3825.3,3825.2,0.8201]
[1733971728889,0.2441094,3825.3,3825.2,0.8201]
[1733971729474,0.2441094,3825.3,3824.8,1.14141865]
[1733971729798,0.26966782,3825.2,3824.8,4.14141865]
[1733971729946,2.61377,3825.9,3824.8,4.14141865]
[1733971730146,0.65910298,3825.8,3824.8,3.8201]
[1733971730347,0.63539011,3825.7,3824.8,3.8201]
[1733971730689,0.66075642,3825.6,3824.8,0.8201]
[1733971730915,1.44999011,3825.5,3824.8,0.8201]
[1733971731120,0.63539011,3825.4,3824.1,0.8201]
[1733971731319,1.44999011,3825.3,3824.1,0.8201]
[1733971731520,0.63539011,3825.2,3824.1,0.8201]
[1733971731704,0.63539011,3825.1,3824.1,0.8201]
[1733971731904,0.63539011,3825.0,3824.1,0.8201]
[1733971732224,0.63539011,3824.9,3824.1,0.8201]
[1733971732419,0.63539011,3824.8,3824.1,0.8201]
[1733971732725,0.63539011,3824.8,3824.1,2.65059]
[1733971732726,0.63539011,3824.7,3824.1,2.65059]
[1733971732919,0.63539011,3824.6,3824.1,2.94277064]
[1733971733074,0.24438081,3824.5,3824.1,2.94277064]
[1733971733420,0.24450561,3824.4,3824.1,2.94277064]
[1733971733617,2.61425,3825.2,3824.1,0.8201]
[1733971733786,3.24980674,3825.1,3824.1,0.8201]
[1733971733991,1.22210935,3825.3,3824.1,0.8201]
[1733971733992,4.08135674,3825.0,3824.1,0.8201]
[1733971734219,0.63547674,3824.9,3824.1,0.8201]
[1733971734376,0.63547674,3824.8,3824.1,0.8201]
[1733971734572,0.63547674,3824.7,3824.1,0.8201]
[1733971734777,0.24441413,3824.6,3824.1,0.8201]
[1733971735004,0.24441413,3824.5,3824.1,0.8201]
[1733971735219,0.8315,3825.0,3823.8,0.27121641]
[1733971735220,2.61452,3824.8,3823.8,1.08961641]
[1733971735405,0.24430707,3824.7,3823.8,1.08961641]
[1733971735607,0.24430707,3824.6,3823.8,1.08961641]
[1733971735814,0.24430707,3824.5,3823.8,1.08961641]
[1733971736008,0.24430707,3824.4,3823.8,1.08961641]
[1733971736188,0.24430707,3824.3,3823.8,1.08961641]
[1733971736390,2.61459,3824.7,3823.8,1.08961641]
[1733971736709,2.61472,3824.5,3823.8,0.27121641]
[1733971736908,0.8315,3824.3,3823.8,0.27121641]
[1733971737075,3.24992274,3824.2,3823.8,0.27121641]
[1733971737274,3.24982942,3824.1,3823.8,0.27121641]
[1733971737478,0.8315,3823.9,3823.8,0.27121641]
[1733971737786,1.46635128,3823.9,3823.8,0.27121641]
[1733971738207,1.07573517,3823.9,3823.8,0.27121641]
[1733971739410,0.8315,3823.9,3823.8,0.27121641]
[1733971739591,1.07529536,3823.9,3823.8,0.27121641]
[1733971739791,0.8315,3823.9,3823.8,0.27121641]
[1733971740019,1.07529635,3823.9,3823.8,0.27121641]
[1733971741680,4.24042635,3823.9,3823.8,0.27121641]
[1733971741886,4.63050052,3823.9,3823.8,0.27121641]
[1733971742316,4.63050052,3823.9,3823.1,0.00900889]
[1733971742317,0.8315,3823.2,3823.1,0.00900889]
[1733971742536,1.07529635,3823.2,3823.1,0.00900889]
[1733971742922,3.69089635,3823.2,3823.1,0.28027009]
[1733971744532,3.69089635,3823.2,3823.1,0.2712612]
[1733971744702,3.69026757,3823.2,3823.1,0.2712612]
[1733971745521,6.63335411,3823.2,3823.1,0.2712612]
[1733971745736,3.16595,3822.7,3822.6,0.625]
[1733971746039,6.63370411,3822.7,3822.6,0.625]
[1733971746195,7.02277222,3822.7,3822.6,0.625]
[1733971748186,7.02277222,3822.7,3822.6,1.25]
[1733971749188,6.47277222,3822.7,3822.6,1.25]
[1733971751005,6.47027775,3822.7,3822.6,1.25]
[1733971753658,6.17245277,3822.7,3822.6,1.25]
[1733971754005,5.54271156,3822.7,3822.6,1.25]
[1733971754205,6.17201379,3822.7,3822.6,1.25]
[1733971754633,6.17205951,3822.7,3822.6,1.25]
[1733971755344,0.2420569,3822.7,3822.6,1.25]
[1733971755647,0.2420569,3823.1,3822.6,2.0653]
[1733971755803,0.2420569,3823.3,3822.6,2.0653]
[1733971756004,0.2420569,3823.2,3822.6,2.0653]
[1733971756248,0.2420569,3823.1,3822.6,2.0653]
[1733971756955,3.68785878,3823.5,3822.6,2.0653]
[1733971756956,2.8575969,3823.3,3822.6,2.0653]